{"text_format":"3","workbook":"xlsx","n_sheets":3,"sheets":["岗位信息表","教育局部分岗位计划表","卫健局部分岗位计划表"],"not_rendered":{"defined_names":2},"read":"whole","date_system":"1900"}

{"sheet":"岗位信息表","index":0,"n_rows":61,"n_cols":12,"rows_kept":61,"merged":[[0,0,0,11]]}
["邢台市襄都区2022年公开招聘事业单位工作人员岗位信息表"]
["主管部门","用人单位","岗位","岗位编码","经费形式","考试类型","拟招聘人数","专   业","学历低限","学位低限","户籍","其他条件"]
["中共邢台市襄都区委办公室","中共邢台市襄都区委信息中心","管理",50222201,"全额","综合类",2,"不限","本科","学士","不限","限高校毕业生"]
["中共邢台市襄都区委宣传部","邢台市襄都区历史文化研究中心（融媒体中心）","管理A",50222202,"全额","综合类",1,"新闻传播学类、中国语言文学类","本科","学士","不限","限高校毕业生"]
["中共邢台市襄都区委宣传部","邢台市襄都区历史文化研究中心（融媒体中心）","管理B",50222203,"全额","综合类",1,"戏剧与影视学类、音乐与舞蹈学类、美术学类","本科","学士","不限","限高校毕业生"]
["中共邢台市襄都区委统一战线工作部","邢台市襄都区民族宗教事务服务中心","管理",50222204,"全额","综合类",1,"不限","本科","学士","不限","限“服务基层项目人员”和“服务冬奥大学生志愿者”"]
["中共邢台市襄都区委政法委员会","邢台市襄都区矛盾纠纷多元化调解处理中心","管理",50222205,"全额","综合类",1,"中国语言文学类","本科","学士","限邢台所辖县（市、区）户籍，高校毕业生不限"]
["中共邢台市襄都区委网络安全和信息化委员会办公室","邢台市襄都区网络舆情信息中心（互联网违法和不良信息举报中心）","管理",50222206,"全额","综合类",2,"不限","本科","学士","限邢台所辖县（市、区）户籍，高校毕业生不限"]
["邢台市襄都区政府办公室","邢台市襄都区大数据发展中心","管理",50222301,"全额","综合类",2,"计算机科学与技术、软件工程、网络工程、信息安全、数据科学与大数据技术、大数据管理与应用","本科","学士","限邢台所辖县（市、区）户籍，高校毕业生不限"]
["邢台市襄都区财政局","邢台市襄都区非税收入中心","管理",50222302,"全额","综合类",1,"财政学类","本科","学士","不限","限高校毕业生"]
["邢台市襄都区财政局","邢台市襄都区财政投资评审中心","管理",50222303,"全额","综合类",2,"管理科学与工程类、工商管理类","本科","学士","不限","限高校毕业生"]
["邢台市襄都区农业农村局","邢台市襄都区乡村振兴发展中心","管理",50222304,"全额","综合类",2,"不限","本科","学士","限邢台所辖县（市、区）户籍，高校毕业生不限"]
["邢台市襄都区住房和城乡建设局","邢台市襄都区建设工程质量与安全管理中心","管理",50222305,"全额","综合类",2,"建筑类、土木类","本科","学士","限邢台所辖县（市、区）户籍，高校毕业生不限"]
["邢台市襄都区人力资源和社会保障局","邢台市襄都区社会保险事业服务中心","管理",50222306,"全额","综合类",1,"不限","本科","学士","限邢台所辖县（市、区）户籍，高校毕业生不限"]
["邢台市襄都区发展和改革局","邢台市襄都区节能监察中心（服务业发展促进中心）","管理",50222307,"全额","综合类",1,"经济学类","本科","学士","限邢台所辖县（市、区）户籍，高校毕业生不限"]
["邢台市襄都区司法局","邢台市襄都区法律援助中心","管理",50222308,"全额","综合类",1,"法学、法律类","本科","学士","限邢台所辖县（市、区）户籍，高校毕业生不限","需具有《法律职业资格证书》A证或通过A类国家统一法律职业资格考试全部科目（原国家司法考试）"]
["邢台市襄都区民政局","邢台市襄都区婚姻登记处","管理",50222309,"全额","综合类",1,"不限","本科","学士","限邢台所辖县（市、区）户籍，高校毕业生不限"]
["邢台市襄都区医疗保障局","邢台市襄都区医疗保障中心","管理",50222310,"全额","综合类",1,"不限","本科","学士","限邢台所辖县（市、区）户籍，高校毕业生不限"]
["邢台市襄都区教育局","中学","财务",50222311,"全额","综合类",2,"财务管理、会计学、财务会计教育","本科","学士","限邢台所辖县（市、区）户籍，高校毕业生不限"]
["邢台市襄都区教育局","中学","中学历史教师",50222312,"全额","教育类",2,"历史学类、学科教学（历史）","本科","学士","限邢台所辖县（市、区）户籍，高校毕业生不限","需具有初级中学及以上学段相应学科的教师资格证或上岗一年内取得"]
["邢台市襄都区教育局","中学","中学物理教师",50222313,"全额","教育类",1,"物理学类、学科教学（物理）","本科","学士","不限","1.限高校毕业生\n2.需具有初级中学及以上学段相应学科的教师资格证或上岗一年内取得"]
["邢台市襄都区教育局","中学","中学日语教师",50222314,"全额","教育类",1,"日语、翻译（日语）","本科","学士","不限","1.限高校毕业生\n2.需具有初级中学及以上学段相应学科的教师资格证或上岗一年内取得"]
["邢台市襄都区教育局","中学","中学信息技术教师",50222315,"全额","教育类",2,"计算机类、信息管理与信息系统、教育技术学","本科","学士","限邢台所辖县（市、区）户籍，高校毕业生不限","需具有初级中学及以上学段相应学科的教师资格证，高校毕业生可上岗一年内取得"]
["邢台市襄都区教育局","小学","小学语文教师A",50222316,"全额","教育类",22,"中国语言文学类、小学教育、学科教学（语文）","本科","学士","不限","1.限高校毕业生\n2.需具有小学及以上学段相应学科的教师资格证或上岗一年内取得"]
["邢台市襄都区教育局","小学","小学语文教师B",50222317,"全额","教育类",5,"中国语言文学类、小学教育、学科教学（语文）","本科","学士","不限","1.限“服务基层项目人员”和“服务冬奥大学生志愿者”\n2.需具有小学及以上学段相应学科的教师资格证，同时符合高校毕业生条件的可上岗一年内取得"]
["邢台市襄都区教育局","小学","小学语文教师C",50222318,"全额","教育类",6,"中国语言文学类、小学教育、学科教学（语文）","本科","学士","限邢台所辖县（市、区）户籍,高校毕业生不限","需具有小学及以上学段相应学科的教师资格证，高校毕业生可上岗一年内取得"]
["邢台市襄都区教育局","小学","小学数学教师A",50222319,"全额","教育类",16,"数学类、小学教育、学科教学（数学）","本科","学士","不限","1.限高校毕业生\n2.需具有小学及以上学段相应学科的教师资格证或上岗一年内取得"]
["邢台市襄都区教育局","小学","小学数学教师B",50222320,"全额","教育类",2,"数学类、小学教育、学科教学（数学）","本科","学士","不限","1.限“服务基层项目人员”和“服务冬奥大学生志愿者”\n2.需具有小学及以上学段相应学科的教师资格证，同时符合高校毕业生条件的可上岗一年内取得"]
["邢台市襄都区教育局","小学","小学数学教师C",50222321,"全额","教育类",2,"数学类、小学教育、学科教学（数学）","本科","学士","限邢台所辖县（市、区）户籍,高校毕业生不限","需具有小学及以上学段相应学科的教师资格证，高校毕业生可上岗一年内取得"]
["邢台市襄都区教育局","小学","小学英语教师A",50222322,"全额","教育类",5,"英语、小学教育、翻译（英语）、商务英语、学科教学（英语）","本科","学士","不限","1.限高校毕业生\n2.需具有小学及以上学段相应学科的教师资格证或上岗一年内取得"]
["邢台市襄都区教育局","小学","小学英语教师B",50222323,"全额","教育类",2,"英语、小学教育、翻译（英语）、商务英语、学科教学（英语）","本科","学士","不限","1.限“服务基层项目人员”和“服务冬奥大学生志愿者”\n2.需具有小学及以上学段相应学科的教师资格证，同时符合高校毕业生条件的可上岗一年内取得"]
["邢台市襄都区教育局","小学","小学音乐教师",50222324,"全额","教育类",2,"音乐与舞蹈学类、学科教学（音乐）","本科","学士","限邢台所辖县（市、区）户籍,高校毕业生不限","需具有小学及以上学段相应学科的教师资格证，高校毕业生可上岗一年内取得"]
["邢台市襄都区教育局","小学","小学体育教师A",50222325,"全额","教育类",2,"体育学类、学科教学（体育）","本科","学士","不限","1.限高校毕业生\n2.需具有小学及以上学段相应学科的教师资格证或上岗一年内取得"]
["邢台市襄都区教育局","小学","小学体育教师B",50222326,"全额","教育类",3,"体育学类、学科教学（体育）","本科","学士","限邢台所辖县（市、区）户籍,高校毕业生不限","需具有小学及以上学段相应学科的教师资格证，高校毕业生可上岗一年内取得"]
["邢台市襄都区教育局","小学","小学美术教师",50222327,"全额","教育类",3,"美术学类、设计学类、学科教学（美术）","本科","学士","限邢台所辖县（市、区）户籍,高校毕业生不限","需具有小学及以上学段相应学科的教师资格证，高校毕业生可上岗一年内取得"]
["邢台市襄都区教育局","小学","小学科学教师",50222328,"全额","教育类",2,"物理学类、化学类、生物科学类、地理科学类、科学教育","本科","学士","限邢台所辖县（市、区）户籍,高校毕业生不限","需具有小学及以上学段相应学科的教师资格证，或具有初级中学以上学段“物理”“化学”“生物”“地理”学科的教师资格证，高校毕业生可上岗一年内取得"]
["邢台市襄都区教育局","小学","小学信息技术教师",50222329,"全额","教育类",3,"计算机类、信息管理与信息系统、教育技术学","本科","学士","限邢台所辖县（市、区）户籍,高校毕业生不限","需具有小学及以上学段相应学科的教师资格证，高校毕业生可上岗一年内取得"]
["邢台市襄都区卫生健康局","邢台市襄都区卫生健康综合执法大队","专技A",50222330,"全额","综合类",1,"法学、法律类","本科","学士","不限","限高校毕业生"]
["邢台市襄都区卫生健康局","邢台市襄都区卫生健康综合执法大队","专技B",50222331,"全额","医学类",1,"公共卫生与预防医学类","本科","学士","不限","限高校毕业生"]
["邢台市襄都区卫生健康局","邢台市襄都区卫生健康宣传中心","专技",50222332,"全额","综合类",1,"中国语言文学类、行政管理、人力资源管理","本科","学士","不限"]
["邢台市襄都区卫生健康局","邢台市襄都区疾病预防控制中心","专技",50222333,"全额","综合类",1,"计算机类","本科","学士","不限","限高校毕业生"]
["邢台市襄都区卫生健康局","邢台市襄都区疾病预防控制中心","检验",50222334,"全额","医学类",3,"医学检验技术、卫生检验与检疫","本科","学士","不限","限高校毕业生"]
["邢台市襄都区卫生健康局","邢台市襄都区疾病预防控制中心","公卫A",50222335,"全额","医学类",5,"公共卫生与预防医学类","本科","学士","不限","限高校毕业生"]
["邢台市襄都区卫生健康局","邢台市襄都区疾病预防控制中心","公卫B",50222336,"全额","医学类",3,"公共卫生与预防医学类","本科","学士","不限"]
["邢台市襄都区卫生健康局","公立医院","临床",50222337,"差额","医学类",1,"临床医学","专科","不限","不限","专科学历需取得执业医师资格证，本科及以上不限"]
["邢台市襄都区卫生健康局","公立医院","中医",50222338,"差额","医学类",2,"中医学","专科","不限","不限","专科学历需取得执业医师资格证，本科及以上不限"]
["邢台市襄都区卫生健康局","公立医院","影像",50222339,"差额","医学类",2,"医学影像学","本科","不限","不限","需取得执业医师资格证"]
["邢台市襄都区卫生健康局","公立医院","精神医师",50222340,"差额","医学类",3,"精神医学","本科","不限","不限","需取得执业医师资格证"]
["邢台市襄都区卫生健康局","社区卫生服务中心及卫生院","临床A",50222341,"差额","医学类",2,"临床医学","专科","不限","不限","1.限“服务基层项目人员”和“服务冬奥大学生志愿者”\n2.专科学历需取得执业医师资格证，本科及以上不限"]
["邢台市襄都区卫生健康局","社区卫生服务中心及卫生院","临床B",50222342,"差额","医学类",1,"临床医学","专科","不限","不限","专科学历需取得执业医师资格证，本科及以上不限"]
["邢台市襄都区卫生健康局","社区卫生服务中心及卫生院","中医A",50222343,"差额","医学类",2,"中医学","专科","不限","不限","1.限“服务基层项目人员”和“服务冬奥大学生志愿者”\n2.专科学历需取得执业医师资格证，本科及以上不限"]
["邢台市襄都区卫生健康局","社区卫生服务中心及卫生院","中医B",50222344,"差额","医学类",1,"中医学","专科","不限","不限","专科学历需取得执业医师资格证，本科及以上不限"]
["邢台市襄都区卫生健康局","社区卫生服务中心及卫生院","影像A",50222345,"差额","医学类",3,"医学影像技术、医学影像学","专科","不限","不限","限高校毕业生"]
["邢台市襄都区卫生健康局","社区卫生服务中心及卫生院","影像B",50222346,"差额","医学类",1,"医学影像技术、医学影像学","专科","不限","不限","限“服务基层项目人员”和“服务冬奥大学生志愿者”"]
["邢台市襄都区卫生健康局","社区卫生服务中心及卫生院","康复",50222347,"差额","医学类",2,"针灸推拿学、康复治疗学、中医康复学、针灸推拿、康复治疗技术、中医康复技术","专科","不限","不限"]
["邢台市襄都区卫生健康局","社区卫生服务中心及卫生院","检验",50222348,"差额","医学类",2,"医学检验技术","专科","不限","不限","限高校毕业生"]
["邢台市襄都区卫生健康局","社区卫生服务中心及卫生院","口腔",50222349,"差额","医学类",2,"口腔医学技术、口腔医学","专科","不限","不限","限高校毕业生"]
["邢台市襄都区卫生健康局","社区卫生服务中心及卫生院","护士",50222350,"差额","医学类",2,"护理学类、护理类","专科","不限","不限"]
["邢台市襄都区卫生健康局","社区卫生服务中心及卫生院","药剂",50222351,"差额","医学类",1,"药学","专科","不限","不限","限高校毕业生"]
["邢台市襄都区卫生健康局","社区卫生服务中心及卫生院","中药",50222352,"差额","医学类",1,"中药学","专科","不限","不限","限高校毕业生"]
["邢台市襄都区卫生健康局","社区卫生服务中心及卫生院","公卫",50222353,"差额","医学类",2,"公共卫生与预防医学类、公共卫生与卫生管理类","专科","不限","不限","限高校毕业生"]

{"sheet":"教育局部分岗位计划表","index":1,"n_rows":28,"n_cols":22,"rows_kept":28,"merged":[[0,0,0,21],[2,0,6,0],[7,0,26,0],[27,0,27,1]]}
["邢台市襄都区2022年公开招聘事业单位工作人员教育局部分岗位计划表"]
["单位类别","单位","财务","中学历史","中学物理","中学日语","中学信息技术","小学语文A","小学语文B","小学语文C","小学数学A","小学数学B","小学数学C","小学英语A","小学英语B","小学音乐","小学体育A","小学体育B","小学美术","小学科学","小学信息技术","合计"]
["中学","邢台市第四中学",null,null,1,{"$nulls":16},{"$f":"SUM(C3:U3)","v":1}]
[null,"邢台市第七中学",1,{"$nulls":3},1,{"$nulls":14},{"$f":"SUM(C4:U4)","v":2}]
[null,"邢台市第二十八中学",null,1,{"$nulls":17},{"$f":"SUM(C5:U5)","v":1}]
[null,"邢台市平安中学",1,null,null,1,1,{"$nulls":14},{"$f":"SUM(C6:U6)","v":3}]
[null,"邢台市襄都区晏家屯中学",null,1,{"$nulls":17},1]
["小学","邢台市龙泉小学",{"$nulls":5},2,2,null,2,null,null,1,1,null,1,null,1,null,null,10]
[null,"邢台市东关逸夫小学",{"$nulls":5},2,1,null,2,null,null,1,1,null,1,{"$nulls":4},8]
[null,"邢台市新华南路小学",{"$nulls":8},3,2,{"$nulls":8},1,6]
[null,"邢台市东大街小学",{"$nulls":5},2,null,null,1,null,null,1,null,1,{"$nulls":5},5]
[null,"邢台市三义庙小学",{"$nulls":5},2,1,null,2,{"$nulls":10},5]
[null,"邢台市马路街小学",{"$nulls":5},2,null,null,3,{"$nulls":10},5]
[null,"邢台市东牛角小学",{"$nulls":5},1,null,null,1,null,null,1,null,1,{"$nulls":5},4]
[null,"邢台市豫办中心学校",{"$nulls":5},1,null,null,1,null,null,1,{"$nulls":4},1,null,null,4]
[null,"邢台市南园路小学",{"$nulls":5},1,1,{"$nulls":10},1,null,3]
[null,"邢台市西仓巷小学",{"$nulls":5},2,null,null,1,{"$nulls":10},3]
[null,"邢台市顺德路小学",{"$nulls":5},1,{"$nulls":13},1]
[null,"邢台市逸夫小学",{"$nulls":5},1,{"$nulls":13},1]
[null,"邢台市北关街小学",{"$nulls":10},1,{"$nulls":8},1]
[null,"邢台市弘毅小学",{"$nulls":10},1,{"$nulls":8},1]
[null,"邢台市家乐园小学",{"$nulls":5},1,{"$nulls":13},1]
[null,"邢台市长信小学",{"$nulls":7},3,{"$nulls":7},2,1,1,1,8]
[null,"邢台市襄都区晏家屯中心学校",{"$nulls":5},2,null,3,{"$nulls":11},5]
[null,"邢台市南陈村小学",{"$nulls":5},1,{"$nulls":9},1,{"$nulls":3},2]
[null,"邢台市辛庄小学",{"$nulls":18},1,1]
[null,"邢台市南康庄小学",{"$nulls":5},1,{"$nulls":13},1]
["合计",null,{"$f":"SUM(C3:C27)","v":2},{"$f":"SUM(D3:D27)","v":2},{"$f":"SUM(E3:E27)","v":1},{"$f":"SUM(F3:F27)","v":1},{"$f":"SUM(G3:G27)","v":2},22,5,6,16,2,2,5,2,2,2,3,3,2,3,83]

{"sheet":"卫健局部分岗位计划表","index":2,"n_rows":13,"n_cols":20,"rows_kept":13,"merged":[[0,0,0,19],[2,0,3,0],[4,0,11,0],[12,0,12,1]]}
["邢台市襄都区2022年公开招聘事业单位工作人员卫健局部分岗位计划表"]
["单位类别","单位","临床","中医","影像","精神医师","临床A","临床B","中医A","中医B","影像A","影像B","康复","检验","口腔","护士","药剂","中药","公卫","合计"]
["公立医院","邢台市精神病医院",null,null,2,3,{"$nulls":13},{"$f":"SUM(C3:S3)","v":5}]
[null,"邢台市襄都区医院",1,2,{"$nulls":15},{"$f":"SUM(C4:S4)","v":3}]
["社区卫生服务中心及卫生院","邢台市襄都区晏家屯中心卫生院",{"$nulls":6},1,{"$nulls":6},1,{"$nulls":3},2]
[null,"邢台市襄都区大梁庄乡卫生院",{"$nulls":4},1,1,{"$nulls":5},1,null,1,1,null,null,5]
[null,"邢台市襄都区东郭村镇卫生院",{"$nulls":6},1,null,1,{"$nulls":8},2]
[null,"邢台市襄都区南长街街道办事处社区卫生服务中心",{"$nulls":8},1,{"$nulls":7},1,2]
[null,"邢台市襄都区泉东街道办事处社区卫生服务中心",{"$nulls":11},1,{"$nulls":5},1]
[null,"邢台市襄都区西大街街道办事处社区卫生服务中心",{"$nulls":8},1,{"$nulls":3},1,null,null,1,1,4]
[null,"邢台市襄都区西门里街道办事处社区卫生服务中心",{"$nulls":9},1,1,null,1,{"$nulls":4},3]
[null,"邢台市襄都区北大街街道办事处社区卫生服务中心",{"$nulls":4},1,null,null,1,null,null,1,{"$nulls":6},3]
["合计",null,{"$f":"SUM(C3:C12)","v":1},{"$f":"SUM(D3:D12)","v":2},2,3,2,1,2,1,3,1,2,2,2,2,1,1,2,30]